[Event "GER-chT Youth Countries 2018"]
[Site "Wurzburg"]
[Date "2018.10.05"]
[Round "4"]
[White "Hund, Sarah"]
[Black "Leser, Katrin"]
[Result "1/2-1/2"]
[ECO "C50"]
[WhiteElo "2023"]
[BlackElo "2018"]
[Annotator "NA"]
[PlyCount "98"]
[EventDate "2018.10.03"]
[EventType "team-tourn"]
[EventCountry "GER"]
[SourceTitle "playchess.com"]
[Source "ChessBase"]
[SourceQuality "1"]
[TimeControl "40/5400+30:1800+30"]

1. e4 {[%emt 0:00:00]} e5 {[%emt 0:00:00]} 2. Bc4 {[%emt 0:00:00]} Bc5 {[%emt 0:00:23]} 3. Nf3 {[%emt 0:00:28]} Nc6 {[%emt 0:00:07]} 4. d3 {[%emt 0:00:26]} Nf6 {[%emt 0:01:40]} 5. c3 {[%emt 0:00:53]} a6 {[%emt 0:00:26]} 6. Bb3 {[%emt 0:00:21]} d6 {[%emt 0:00:16]} 7. Nbd2 {[%emt 0:01:12]} Ba7 {[%emt 0:01:04]} 8. h3 {[%emt 0:00:49]} O-O {[%emt 0:01:42]} 9. Nf1 {[%emt 0:01:40]} h6 {[%emt 0:01:27]} 10. Ng3 {[%emt 0:01:12]} Be6 {[%emt 0:01:45] LiveBook: 53 Partien} 11. O-O $11 {[%emt 0:01:27]} d5 {[%emt 0:03:17]} 12. Qe2 {[%emt 0:02:59]} Re8 {[%emt 0:04:07]} 13. Rd1 {[%emt 0:04:26]} Qd7 {[%emt 0:11:31]} 14. Kh2 {[%emt 0:04:44]} Rad8 {[%emt 0:04:15]} 15. Nh4 {[%emt 0:03:34]} Na5 {[%emt 0:07:09]} 16. Bc2 {[%emt 0:09:16]} dxe4 {[%emt 0:06:33]} 17. dxe4 {[%emt 0:04:42]} Qc6 {[%emt 0:02:33]} 18. Rxd8 {[%emt 0:03:53]} Rxd8 {[%emt 0:00:06]} 19. Nhf5 {[%emt 0:00:45]} Kh7 {[%emt 0:17:47]} 20. Qf3 {[%emt 0:07:28]} Ng8 {[%emt 0:07:24]} 21. Qg4 {[%emt 0:04:31]} Bxf5 {[%emt 0:02:57]} 22. exf5 {[%emt 0:08:03]} Nf6 {[%emt 0:01:10]} 23. Qe2 {[%emt 0:01:42]} Nc4 {[%emt 0:13:00]} 24. Ne4 {[%emt 0:05:47]} b5 {[%emt 0:00:28]} 25. a4 {[%emt 0:02:44]} Nxe4 {[%emt 0:02:28]} 26. Bxe4 {[%emt 0:00:46]} Qc5 {[%emt 0:04:01]} 27. b3 {[%emt 0:03:12]} Nd6 {[%emt 0:01:41]} 28. Be3 {[%emt 0:00:59]} Qxc3 {[%emt 0:00:10]} 29. Rc1 {[%emt 0:00:29]} Qb4 {[%emt 0:00:12]} 30. Bb1 {[%emt 0:04:34]} Bxe3 {[%emt 0:01:41]} 31. Qxe3 {[%emt 0:00:10]} Rd7 {[%emt 0:00:55]} 32. Qxe5 {[%emt 0:05:19]} f6 {[%emt 0:01:02]} 33. Qg3 {[%emt 0:04:42]} bxa4 {[%emt 0:00:21]} 34. bxa4 {[%emt 0:00:52]} Qxa4 {[%emt 0:00:11]} 35. Bc2 {[%emt 0:03:01]} Qc4 {[%emt 0:01:41]} 36. Rb1 {[%emt 0:01:06]} Rd8 {[%emt 0:00:37]} 37. Bd3 {[%emt 0:01:05]} Qa2 {[%emt 0:00:37]} 38. Rb4 {[%emt 0:00:48]} a5 {[%emt 0:00:48]} 39. Rh4 {[%emt 0:02:24]} Qf7 {[%emt 0:00:24]} 40. Bc2 {[%emt 0:00:43]} Qe8 {[%emt 0:00:49]} 41. Qc3 {[%emt 0:31:31]} Qe2 {[%emt 0:14:33]} 42. Qxc7 {[%emt 0:00:00]} Rc8 {[%emt 0:01:40]} 43. Qxd6 {[%emt 0:00:00]} Rxc2 {[%emt 0:00:53]} 44. Qg3 {[%emt 0:00:00]} Qe5 {[%emt 0:07:13]} 45. Qxe5 {[%emt 0:00:00]} fxe5 {[%emt 0:00:41]} 46. Re4 {[%emt 0:00:00]} Rxf2 {[%emt 0:00:26]} 47. Rxe5 {[%emt 0:00:00]} a4 {[%emt 0:00:43]} 48. Ra5 {[%emt 0:00:00]} a3 {[%emt 0:01:45]} 49. Rxa3 {[%emt 0:00:00]} Rxf5 {[%emt 0:00:05]} 1/2-1/2

[Event "GER-chT Youth Countries 2018"]
[Site "Wurzburg"]
[Date "2018.10.05"]
[Round "4"]
[White "Hommer, Jeremy"]
[Black "Laux, Dominik"]
[Result "1/2-1/2"]
[ECO "B10"]
[WhiteElo "1983"]
[BlackElo "1987"]
[Annotator "NA"]
[PlyCount "74"]
[EventDate "2018.10.03"]
[EventType "team-tourn"]
[EventCountry "GER"]
[SourceTitle "playchess.com"]
[Source "ChessBase"]
[SourceQuality "1"]
[TimeControl "40/5400+30:1800+30"]

1. e4 {[%emt 0:00:00]} c6 {[%emt 0:00:00]} 2. Nf3 {[%emt 0:00:00]} d5 {[%emt 0:00:08]} 3. exd5 {[%emt 0:00:00]} cxd5 {[%emt 0:00:06]} 4. Ne5 {[%emt 0:00:00]} Nd7 {[%emt 0:11:24]} 5. d4 {[%emt 0:00:23]} Nxe5 {[%emt 0:02:36]} 6. dxe5 {[%emt 0:00:10]} e6 {[%emt 0:01:19]} 7. Bd3 $14 {[%emt 0:03:37] LiveBook: 8 Games} Ne7 {[%emt 0:03:35]} 8. O-O {[%emt 0:02:43]} Bd7 {[%emt 0:02:22]} 9. Be3 {[%emt 0:05:54]} Nc6 {[%emt 0:05:56]} 10. f4 {[%emt 0:01:35]} Qa5 {[%emt 0:04:00]} 11. c3 {[%emt 0:06:39]} Bc5 {[%emt 0:02:29]} 12. Qe2 {[%emt 0:09:32]} Ne7 {[%emt 0:08:51]} 13. Bxc5 {[%emt 0:08:44]} Qxc5+ {[%emt 0:00:22]} 14. Qf2 {[%emt 0:04:53]} Rc8 {[%emt 0:03:35]} 15. Nd2 {[%emt 0:06:48]} O-O {[%emt 0:12:35]} 16. Nb3 {[%emt 0:03:36]} Qxf2+ {[%emt 0:00:31]} 17. Rxf2 {[%emt 0:01:02]} Rfd8 {[%emt 0:03:07]} 18. g4 {[%emt 0:05:58]} Ba4 {[%emt 0:05:32]} 19. Rd2 {[%emt 0:12:23]} h6 {[%emt 0:07:45]} 20. Kf2 {[%emt 0:02:04]} Kf8 {[%emt 0:01:30]} 21. h3 {[%emt 0:03:42]} Rc7 {[%emt 0:03:23]} 22. Nd4 {[%emt 0:01:26]} Nc6 {[%emt 0:02:41]} 23. Nb5 {[%emt 0:00:34]} Bxb5 {[%emt 0:00:33]} 24. Bxb5 {[%emt 0:00:01]} Ke7 {[%emt 0:01:15]} 25. Rc1 {[%emt 0:07:01]} a6 {[%emt 0:02:44]} 26. Be2 {[%emt 0:01:14]} Rdc8 {[%emt 0:02:28]} 27. Rcd1 {[%emt 0:04:58]} Na5 {[%emt 0:03:20]} 28. Rd4 {[%emt 0:00:20]} Rg8 {[%emt 0:01:50]} 29. Kg3 {[%emt 0:03:12]} g5 {[%emt 0:02:59]} 30. h4 {[%emt 0:00:34]} Nc6 {[%emt 0:00:31]} 31. R4d3 {[%emt 0:00:51]} gxf4+ {[%emt 0:00:19]} 32. Kxf4 {[%emt 0:00:02]} f6 {[%emt 0:02:28]} 33. exf6+ {[%emt 0:00:13]} Kxf6 {[%emt 0:00:01]} 34. Re3 {[%emt 0:01:29]} e5+ {[%emt 0:01:06]} 35. Kg3 {[%emt 0:00:06]} Ne7 {[%emt 0:00:24]} 36. Rf1+ {[%emt 0:00:53]} Ke6 {[%emt 0:00:33]} 37. Ref3 {[%emt 0:00:26]} Ng6 {[%emt 0:01:16]} 1/2-1/2

[Event "GER-chT Youth Countries 2018"]
[Site "Wurzburg"]
[Date "2018.10.05"]
[Round "4"]
[White "Halas, Julia"]
[Black "Wiesner, Paula"]
[Result "1-0"]
[ECO "D11"]
[WhiteElo "1972"]
[BlackElo "1969"]
[Annotator "NA"]
[PlyCount "89"]
[EventDate "2018.10.03"]
[EventType "team-tourn"]
[EventCountry "GER"]
[SourceTitle "playchess.com"]
[Source "ChessBase"]
[SourceQuality "1"]
[TimeControl "40/5400+30:1800+30"]

1. d4 {[%emt 0:00:00]} d5 {[%emt 0:00:00]} 2. c4 {[%emt 0:00:00]} c6 {[%emt 0:00:00]} 3. Nf3 {[%emt 0:00:00]} e6 {[%emt 0:00:00]} 4. cxd5 {[%emt 0:00:14]} exd5 {[%emt 0:00:38]} 5. Qc2 {[%emt 0:00:48]} Bd6 {[%emt 0:00:21]} 6. Nc3 {[%emt 0:05:01]} Ne7 {[%emt 0:00:47]} 7. Bg5 {[%emt 0:01:26]} f6 {[%emt 0:01:31]} 8. Bh4 {[%emt 0:01:33]} Bf5 {[%emt 0:00:10]} 9. Qd2 $11 {[%emt 0:05:48] LiveBook: 52 Games} O-O {[%emt 0:01:40]} 10. e3 {[%emt 0:01:26]} Bg6 {[%emt 0:06:44]} 11. Bg3 {[%emt 0:01:01]} Re8 {[%emt 0:03:27]} 12. Bd3 {[%emt 0:05:09]} Kh8 {[%emt 0:05:58]} 13. O-O {[%emt 0:03:55]} Bxg3 {[%emt 0:01:24]} 14. hxg3 {[%emt 0:00:07]} Nd7 {[%emt 0:00:26]} 15. Ne2 {[%emt 0:11:51]} Nf8 {[%emt 0:03:21]} 16. Nf4 {[%emt 0:01:51]} Be4 {[%emt 0:01:41]} 17. Bc2 {[%emt 0:12:15]} Nf5 {[%emt 0:05:35]} 18. b4 {[%emt 0:09:01]} Nd6 {[%emt 0:01:59]} 19. Rfc1 {[%emt 0:04:09]} Ne6 {[%emt 0:05:16]} 20. Nd3 {[%emt 0:01:32]} Qe7 {[%emt 0:05:52]} 21. Nc5 {[%emt 0:05:12]} Qf7 {[%emt 0:04:43]} 22. a4 {[%emt 0:08:15]} Qh5 {[%emt 0:04:07]} 23. Bd1 {[%emt 0:00:29]} Qg6 {[%emt 0:02:07]} 24. Be2 {[%emt 0:08:25]} Ng5 {[%emt 0:05:14]} 25. Nh4 {[%emt 0:02:33]} Qf7 {[%emt 0:01:08]} 26. b5 {[%emt 0:00:52]} cxb5 {[%emt 0:03:35]} 27. axb5 {[%emt 0:00:12]} b6 {[%emt 0:01:13]} 28. Na6 {[%emt 0:01:47]} Nc4 {[%emt 0:04:05]} 29. Qd1 {[%emt 0:01:53]} Rec8 {[%emt 0:03:18]} 30. Nb4 {[%emt 0:00:51]} Qd7 {[%emt 0:02:21]} 31. Nc6 {[%emt 0:02:06]} a6 {[%emt 0:02:41]} 32. Qb3 {[%emt 0:02:57]} axb5 {[%emt 0:08:23]} 33. Qxb5 {[%emt 0:00:09]} Nd6 {[%emt 0:01:25]} 34. Rxa8 {[%emt 0:03:12]} Nxb5 {[%emt 0:00:50]} 35. Rxc8+ {[%emt 0:00:06]} Qxc8 {[%emt 0:00:02]} 36. Bxb5 {[%emt 0:00:05]} Nf7 {[%emt 0:01:58]} 37. Ra1 {[%emt 0:00:57]} Nd6 {[%emt 0:01:02]} 38. Ne7 {[%emt 0:01:07]} Qb8 {[%emt 0:03:00]} 39. Bc6 {[%emt 0:00:36]} Nb7 {[%emt 0:00:11]} 40. f3 {[%emt 0:00:27]} Bd3 {[%emt 0:03:41]} 41. Bxd5 {[%emt 0:05:51]} Na5 {[%emt 0:03:33]} 42. Rc1 {[%emt 0:00:50]} Ba6 {[%emt 0:00:08]} 43. Nhg6+ {[%emt 0:01:45]} hxg6 {[%emt 0:00:31]} 44. Kf2 {[%emt 0:00:08]} Qd6 {[%emt 0:01:03]} 45. Rh1# {[%emt 0:00:07]} 1-0

[Event "GER-chT Youth Countries 2018"]
[Site "Wurzburg"]
[Date "2018.10.05"]
[Round "4"]
[White "Arnhold, Steffi"]
[Black "Grund, Sebastian"]
[Result "1/2-1/2"]
[ECO "B35"]
[WhiteElo "1955"]
[BlackElo "1992"]
[Annotator "NA"]
[PlyCount "62"]
[EventDate "2018.10.03"]
[EventType "team-tourn"]
[EventCountry "GER"]
[SourceTitle "playchess.com"]
[Source "ChessBase"]
[SourceQuality "1"]
[TimeControl "40/5400+30:1800+30"]

1. e4 {[%emt 0:00:00]} c5 {[%emt 0:00:00]} 2. Nf3 {[%emt 0:00:00]} Nc6 {[%emt 0:00:00]} 3. d4 {[%emt 0:00:00]} cxd4 {[%emt 0:00:00]} 4. Nxd4 {[%emt 0:00:02]} g6 {[%emt 0:00:00]} 5. Nc3 {[%emt 0:00:40]} Bg7 {[%emt 0:00:00]} 6. Be3 {[%emt 0:00:19]} Nf6 {[%emt 0:00:10]} 7. Bc4 {[%emt 0:00:40]} Qa5 {[%emt 0:00:07]} 8. O-O {[%emt 0:01:01]} O-O {[%emt 0:00:08]} 9. Bb3 {[%emt 0:00:57]} d6 {[%emt 0:00:11]} 10. h3 {[%emt 0:02:06]} Bd7 {[%emt 0:00:16]} 11. f4 {[%emt 0:03:00]} Nxd4 {[%emt 0:00:19]} 12. Bxd4 {[%emt 0:00:35]} Bc6 {[%emt 0:00:12]} 13. Nd5 {[%emt 0:04:12]} Rae8 $11 {[%emt 0:00:48] LiveBook: 10 Games} 14. Qd3 {[%emt 0:03:45]} Bxd5 {[%emt 0:02:57]} 15. exd5 {[%emt 0:04:36]} Nd7 {[%emt 0:00:29]} 16. Bxg7 {[%emt 0:02:10]} Kxg7 {[%emt 0:00:11]} 17. Rae1 {[%emt 0:03:09]} Qc5+ {[%emt 0:08:57]} 18. Kh1 {[%emt 0:02:06]} b5 {[%emt 0:08:38]} 19. a4 {[%emt 0:12:22]} a6 {[%emt 0:05:24]} 20. axb5 {[%emt 0:01:21]} axb5 {[%emt 0:00:16]} 21. Re4 {[%emt 0:10:21]} f5 {[%emt 0:04:00]} 22. Re2 {[%emt 0:03:22]} Nf6 {[%emt 0:00:23]} 23. Kh2 {[%emt 0:03:02]} Qb4 {[%emt 0:09:13]} 24. Qf3 {[%emt 0:04:29]} Ne4 {[%emt 0:01:25]} 25. Rd1 {[%emt 0:04:58]} Rf7 {[%emt 0:25:41]} 26. Qe3 {[%emt 0:12:04]} Nc5 {[%emt 0:08:03]} 27. Ba2 {[%emt 0:06:18]} Ra8 {[%emt 0:06:02]} 28. Bb3 {[%emt 0:06:27]} Rc8 {[%emt 0:11:42]} 29. Rd4 {[%emt 0:03:05]} Qa5 {[%emt 0:00:13]} 30. Rd1 {[%emt 0:00:40]} Qb4 {[%emt 0:02:12]} 31. Rd4 {[%emt 0:01:15]} Qa5 {[%emt 0:00:14]} 1/2-1/2

[Event "GER-chT Youth Countries 2018"]
[Site "Wurzburg"]
[Date "2018.10.05"]
[Round "4"]
[White "Hommel, Niclas"]
[Black "Nguyen, Alex Dac-Vuong"]
[Result "0-1"]
[ECO "C11"]
[WhiteElo "1915"]
[BlackElo "2240"]
[Annotator "NA"]
[PlyCount "80"]
[EventDate "2018.10.03"]
[EventType "team-tourn"]
[EventCountry "GER"]
[SourceTitle "playchess.com"]
[Source "ChessBase"]
[SourceQuality "1"]
[TimeControl "40/5400+30:1800+30"]

1. e4 {[%emt 0:00:00]} e6 {[%emt 0:00:00]} 2. d4 {[%emt 0:00:00]} d5 {[%emt 0:00:00]} 3. Nc3 {[%emt 0:00:00]} Nf6 {[%emt 0:00:00]} 4. e5 {[%emt 0:00:00]} Nfd7 {[%emt 0:00:00]} 5. f4 {[%emt 0:00:00]} c5 {[%emt 0:00:01]} 6. Nf3 {[%emt 0:00:00]} Nc6 {[%emt 0:00:09]} 7. Be3 {[%emt 0:00:00]} Be7 {[%emt 0:00:20]} 8. Qd2 {[%emt 0:00:04]} O-O {[%emt 0:00:05]} 9. dxc5 {[%emt 0:00:03]} Bxc5 {[%emt 0:00:06]} 10. O-O-O {[%emt 0:00:05]} Qa5 {[%emt 0:00:07]} 11. a3 {[%emt 0:00:03]} Rd8 {[%emt 0:00:08]} 12. Bxc5 {[%emt 0:00:16]} Nxc5 {[%emt 0:00:08]} 13. h4 {[%emt 0:00:16]} Qb6 $14 {[%emt 0:13:23]} 14. Nd4 {[%emt 0:10:25]} Ne4 {[%emt 0:01:30]} 15. Qe3 {[%emt 0:00:38]} Nxc3 {[%emt 0:00:40]} 16. Qxc3 {[%emt 0:00:09]} Bd7 {[%emt 0:00:08]} 17. h5 {[%emt 0:10:22]} Rac8 {[%emt 0:07:33]} 18. Nxc6 {[%emt 0:22:08]} bxc6 {[%emt 0:05:37]} 19. h6 {[%emt 0:02:06]} g6 {[%emt 0:05:05]} 20. f5 {[%emt 0:01:05]} c5 {[%emt 0:01:13]} 21. fxg6 {[%emt 0:05:28]} fxg6 {[%emt 0:00:21]} 22. Rh3 {[%emt 0:13:08]} d4 {[%emt 0:11:50]} 23. Qd2 {[%emt 0:02:52]} Qc7 {[%emt 0:03:18]} 24. Qg5 {[%emt 0:01:42]} Rf8 {[%emt 0:00:48]} 25. Bc4 {[%emt 0:01:27]} Qd8 {[%emt 0:00:25]} 26. Qxd8 {[%emt 0:07:39]} Rcxd8 {[%emt 0:01:10]} 27. b4 {[%emt 0:00:02]} Kf7 {[%emt 0:21:57]} 28. bxc5 {[%emt 0:14:13]} Ke7 {[%emt 0:05:19]} 29. Rxd4 {[%emt 0:02:08]} Rc8 {[%emt 0:00:13]} 30. Rhd3 {[%emt 0:00:36]} Rc7 {[%emt 0:00:11]} 31. g4 {[%emt 0:02:43]} Rf1+ {[%emt 0:01:19]} 32. Kd2 {[%emt 0:00:18]} Rh1 {[%emt 0:00:13]} 33. Rd6 {[%emt 0:00:54]} Rxh6 {[%emt 0:00:47]} 34. c6 {[%emt 0:00:16]} Bc8 {[%emt 0:00:06]} 35. Bb5 {[%emt 0:00:10]} Rh2+ {[%emt 0:02:10]} 36. Ke1 {[%emt 0:01:33]} Rxc2 {[%emt 0:05:09]} 37. R3d4 {[%emt 0:02:19]} Rc5 {[%emt 0:01:05]} 38. Rd7+ {[%emt 0:00:07]} Bxd7 {[%emt 0:00:25]} 39. cxd7 {[%emt 0:00:04]} Rxe5+ {[%emt 0:00:32]} 40. Kf2 {[%emt 0:00:56]} Rd5 {[%emt 0:00:35]} 0-1

[Event "GER-chT Youth Countries 2018"]
[Site "Wurzburg"]
[Date "2018.10.05"]
[Round "4"]
[White "Ratay, Meike"]
[Black "Bui, Ngoc Han Julia"]
[Result "1/2-1/2"]
[ECO "B90"]
[WhiteElo "1887"]
[BlackElo "1876"]
[Annotator "NA"]
[PlyCount "54"]
[EventDate "2018.10.03"]
[EventType "team-tourn"]
[EventCountry "GER"]
[SourceTitle "playchess.com"]
[Source "ChessBase"]
[SourceQuality "1"]
[TimeControl "40/5400+30:1800+30"]

1. e4 {[%emt 0:00:00]} c5 {[%emt 0:00:00]} 2. Nf3 {[%emt 0:00:00]} d6 {[%emt 0:00:00]} 3. d4 {[%emt 0:00:00]} cxd4 {[%emt 0:00:00]} 4. Nxd4 {[%emt 0:00:00]} Nf6 {[%emt 0:00:00]} 5. Nc3 {[%emt 0:00:00]} a6 {[%emt 0:00:04]} 6. Be3 {[%emt 0:00:09]} e6 {[%emt 0:00:22]} 7. f3 {[%emt 0:00:15]} b5 {[%emt 0:00:28]} 8. Qd2 {[%emt 0:00:25]} Nbd7 {[%emt 0:00:41]} 9. g4 {[%emt 0:00:52]} Nb6 {[%emt 0:00:34]} 10. a4 $14 {[%emt 0:04:40] LiveBook: 171 Games} bxa4 {[%emt 0:19:03]} 11. Nxa4 {[%emt 0:02:00]} Nxa4 {[%emt 0:02:20]} 12. Rxa4 {[%emt 0:00:08]} Bb7 {[%emt 0:00:16]} 13. Be2 {[%emt 0:10:03]} d5 {[%emt 0:05:21]} 14. g5 {[%emt 0:02:45]} Nd7 {[%emt 0:01:58]} 15. exd5 {[%emt 0:03:51]} Bxd5 {[%emt 0:08:30]} 16. Rxa6 {[%emt 0:09:52]} Rb8 {[%emt 0:12:57]} 17. Bb5 {[%emt 0:18:51]} Rxb5 {[%emt 0:11:00]} 18. Nxb5 {[%emt 0:00:30]} Ne5 {[%emt 0:00:42]} 19. Kf2 {[%emt 0:10:36]} Ng4+ {[%emt 0:12:15]} 20. Kg2 {[%emt 0:07:58]} Be7 {[%emt 0:07:13]} 21. h4 {[%emt 0:03:56]} h6 {[%emt 0:02:41]} 22. c4 {[%emt 0:05:20]} Nxe3+ {[%emt 0:01:32]} 23. Qxe3 {[%emt 0:00:10]} Bb7 {[%emt 0:04:04]} 24. Ra7 {[%emt 0:03:35]} Qb8 {[%emt 0:03:40]} 25. g6 {[%emt 0:07:29]} O-O {[%emt 0:00:45]} 26. Rh3 {[%emt 0:01:23]} e5 {[%emt 0:02:21]} 27. Kf1 {[%emt 0:03:14]} Qc8 {[%emt 0:01:05]} 1/2-1/2

[Event "GER-chT Youth Countries 2018"]
[Site "Wurzburg"]
[Date "2018.10.05"]
[Round "4"]
[White "Arakelian, Aik"]
[Black "Glinzner, Alva"]
[Result "1-0"]
[ECO "B43"]
[WhiteElo "1879"]
[BlackElo "1787"]
[Annotator "NA"]
[PlyCount "97"]
[EventDate "2018.10.03"]
[EventType "team-tourn"]
[EventCountry "GER"]
[SourceTitle "playchess.com"]
[Source "ChessBase"]
[SourceQuality "1"]
[TimeControl "40/5400+30:1800+30"]

1. e4 {[%emt 0:00:00]} c5 {[%emt 0:00:00]} 2. Nf3 {[%emt 0:00:00]} e6 {[%emt 0:00:00]} 3. d4 {[%emt 0:00:00]} cxd4 {[%emt 0:00:00]} 4. Nxd4 {[%emt 0:00:03]} a6 {[%emt 0:00:01]} 5. Nc3 {[%emt 0:00:12]} Qc7 {[%emt 0:00:13]} 6. Qf3 {[%emt 0:00:38]} d6 {[%emt 0:02:26]} 7. Be3 {[%emt 0:05:46] LiveBook: 9 Games} Nd7 {[%emt 0:03:18]} 8. g4 $11 {[%emt 0:04:46]} Rb8 {[%emt 0:04:41]} 9. g5 {[%emt 0:09:28]} b5 {[%emt 0:01:37]} 10. a3 {[%emt 0:00:51]} Ne7 {[%emt 0:04:22]} 11. Qg3 {[%emt 0:05:15]} Ne5 {[%emt 0:04:31]} 12. Rd1 {[%emt 0:08:48]} N7c6 {[%emt 0:14:54]} 13. Bf4 {[%emt 0:18:03]} Nxd4 {[%emt 0:06:52]} 14. Rxd4 {[%emt 0:00:48]} Qc5 {[%emt 0:04:31]} 15. Be3 {[%emt 0:07:01]} Qc7 {[%emt 0:04:00]} 16. Be2 {[%emt 0:02:19]} Nc4 {[%emt 0:09:47]} 17. Bc1 {[%emt 0:00:30]} Qc5 {[%emt 0:05:09]} 18. Rd1 {[%emt 0:04:42]} Bb7 {[%emt 0:05:30]} 19. O-O {[%emt 0:02:44]} Rc8 {[%emt 0:02:31]} 20. Rd3 {[%emt 0:07:41]} a5 {[%emt 0:03:42]} 21. b3 {[%emt 0:02:12]} Ne5 {[%emt 0:07:09]} 22. Re3 {[%emt 0:03:05]} b4 {[%emt 0:01:23]} 23. axb4 {[%emt 0:02:17]} axb4 {[%emt 0:00:09]} 24. Na4 {[%emt 0:00:01]} Qxc2 {[%emt 0:04:35]} 25. Bb5+ {[%emt 0:00:07]} Bc6 {[%emt 0:00:47]} 26. Re2 {[%emt 0:00:28]} Bxb5 {[%emt 0:02:03]} 27. Rxc2 {[%emt 0:00:07]} Rxc2 {[%emt 0:00:03]} 28. Bf4 {[%emt 0:03:25]} Bxf1 {[%emt 0:05:22]} 29. Kxf1 {[%emt 0:00:01]} Ng6 {[%emt 0:00:38]} 30. Bxd6 {[%emt 0:00:52]} Be7 {[%emt 0:01:36]} 31. Bxb4 {[%emt 0:05:00]} O-O {[%emt 0:00:49]} 32. Bxe7 {[%emt 0:00:47]} Nxe7 {[%emt 0:00:06]} 33. Qd6 {[%emt 0:00:06]} Ng6 {[%emt 0:00:35]} 34. Nb6 {[%emt 0:00:16]} Ra2 {[%emt 0:01:56]} 35. b4 {[%emt 0:00:47]} e5 {[%emt 0:00:59]} 36. Nd5 {[%emt 0:05:18]} Re8 {[%emt 0:00:58]} 37. b5 {[%emt 0:00:53]} Ra1+ {[%emt 0:00:41]} 38. Kg2 {[%emt 0:00:25]} Raa8 {[%emt 0:00:20]} 39. b6 {[%emt 0:00:44]} Rad8 {[%emt 0:00:21]} 40. Qc6 {[%emt 0:00:35]} Rc8 {[%emt 0:00:44]} 41. Nc7 {[%emt 0:30:28]} Red8 {[%emt 0:02:27]} 42. b7 {[%emt 0:00:00]} Nf4+ {[%emt 0:02:41]} 43. Kf3 {[%emt 0:00:00]} Rb8 {[%emt 0:00:51]} 44. Na6 {[%emt 0:00:00]} Ne6 {[%emt 0:01:58]} 45. Nxb8 {[%emt 0:00:00]} Nd4+ {[%emt 0:00:29]} 46. Kg4 {[%emt 0:00:00]} Nxc6 {[%emt 0:00:15]} 47. Nxc6 {[%emt 0:00:00]} Re8 {[%emt 0:00:21]} 48. Ne7+ {[%emt 0:00:00]} Kf8 {[%emt 0:00:14]} 49. Nc8 {[%emt 0:00:00]} 1-0

[Event "GER-chT Youth Countries 2018"]
[Site "Wurzburg"]
[Date "2018.10.05"]
[Round "4"]
[White "Zeuner, Ole"]
[Black "Ley, Sabrina"]
[Result "1-0"]
[ECO "B90"]
[WhiteElo "1865"]
[BlackElo "1902"]
[Annotator "NA"]
[PlyCount "89"]
[EventDate "2018.10.03"]
[EventType "team-tourn"]
[EventCountry "GER"]
[SourceTitle "playchess.com"]
[Source "ChessBase"]
[SourceQuality "1"]
[TimeControl "40/5400+30:1800+30"]

1. e4 {[%emt 0:00:00]} c5 {[%emt 0:00:00]} 2. Nf3 {[%emt 0:00:00]} d6 {[%emt 0:00:00]} 3. d4 {[%emt 0:00:00]} cxd4 {[%emt 0:00:00]} 4. Nxd4 {[%emt 0:00:00]} Nf6 {[%emt 0:00:00]} 5. Nc3 {[%emt 0:00:08]} a6 {[%emt 0:00:00]} 6. Be3 {[%emt 0:00:09]} e5 {[%emt 0:01:16]} 7. Nb3 {[%emt 0:00:06]} Be6 {[%emt 0:00:07]} 8. h3 {[%emt 0:00:55]} h5 {[%emt 0:05:00]} 9. f4 $14 {[%emt 0:08:00] LiveBook: 20 Games} Be7 {[%emt 0:15:19]} 10. f5 {[%emt 0:05:43]} Bd7 {[%emt 0:04:13]} 11. g3 {[%emt 0:15:32]} Qc7 {[%emt 0:04:21]} 12. Qe2 {[%emt 0:01:25]} Bc6 {[%emt 0:05:34]} 13. Bg2 {[%emt 0:00:52]} b5 {[%emt 0:06:31]} 14. a3 {[%emt 0:10:28]} Nbd7 {[%emt 0:01:00]} 15. g4 {[%emt 0:02:32]} Nc5 {[%emt 0:08:18]} 16. Nxc5 {[%emt 0:02:44]} dxc5 {[%emt 0:00:10]} 17. g5 {[%emt 0:00:11]} Nd7 {[%emt 0:02:18]} 18. a4 {[%emt 0:15:35]} bxa4 {[%emt 0:11:29]} 19. Nxa4 {[%emt 0:02:03]} Qb7 {[%emt 0:02:37]} 20. Bc1 {[%emt 0:03:05]} Bb5 {[%emt 0:10:19]} 21. Qf2 {[%emt 0:02:58]} Bxa4 {[%emt 0:05:08]} 22. Rxa4 {[%emt 0:00:14]} Qb5 {[%emt 0:00:42]} 23. Ra1 {[%emt 0:04:04]} c4 {[%emt 0:03:23]} 24. Bf1 {[%emt 0:06:17]} Bc5 {[%emt 0:04:39]} 25. Qf3 {[%emt 0:00:48]} Qb4+ {[%emt 0:00:57]} 26. c3 {[%emt 0:00:50]} Qb3 {[%emt 0:00:39]} 27. Rh2 {[%emt 0:01:21]} a5 {[%emt 0:03:19]} 28. Qe2 {[%emt 0:03:41]} Nb6 {[%emt 0:01:14]} 29. Be3 {[%emt 0:00:46]} Bxe3 {[%emt 0:01:10]} 30. Qxe3 {[%emt 0:00:05]} Na4 {[%emt 0:02:54]} 31. Qe2 {[%emt 0:03:00]} Rb8 {[%emt 0:01:13]} 32. Qxc4 {[%emt 0:02:57]} Qxc4 {[%emt 0:01:19]} 33. Bxc4 {[%emt 0:00:01]} Rxb2 {[%emt 0:00:36]} 34. Rxb2 {[%emt 0:00:16]} Nxb2 {[%emt 0:00:01]} 35. Bb5+ {[%emt 0:00:54]} Ke7 {[%emt 0:00:28]} 36. Rb1 {[%emt 0:01:42]} Rc8 {[%emt 0:00:24]} 37. Rxb2 {[%emt 0:02:08]} Rxc3 {[%emt 0:00:05]} 38. Bf1 {[%emt 0:01:43]} a4 {[%emt 0:00:29]} 39. Rb7+ {[%emt 0:00:59]} Kf8 {[%emt 0:00:29]} 40. Kd2 {[%emt 0:02:19]} Rf3 {[%emt 0:00:14]} 41. Bc4 {[%emt 0:32:05]} f6 {[%emt 0:06:59]} 42. g6 {[%emt 0:00:00]} a3 {[%emt 0:01:53]} 43. Rf7+ {[%emt 0:00:00]} Ke8 {[%emt 0:00:44]} 44. Rxg7 {[%emt 0:00:00]} a2 {[%emt 0:00:24]} 45. Ra7 {[%emt 0:00:00]} 1-0